bitfinex-derivatives/quotes_BTCF0:USTF0_20250308
["timestamp","ask_amount","ask_price","bid_price","bid_amount"]
[1741393957392,0.001,86645.0,86644.0,0.18675953]
[1741393958092,0.001,86645.0,86644.0,0.20126466]
[1741393958396,0.001,86645.0,86644.0,0.18675953]
[1741393958990,0.00117307,86651.0,86644.0,0.12928562]
[1741393959190,0.3608,86648.0,86644.0,0.12928562]
[1741393959390,0.3608,86648.0,86645.0,0.01673344]
[1741393959791,0.3608,86648.0,86646.0,0.1146]
[1741393960591,0.1181,86647.0,86646.0,0.1146]
[1741393961198,0.2335431,86647.0,86646.0,0.1146]
[1741393961600,0.2335431,86647.0,86646.0,0.13155069]
[1741393962001,0.1181,86647.0,86646.0,0.07407678]
[1741393963002,0.1211,86647.0,86646.0,0.07407678]
[1741393965107,0.1211,86647.0,86646.0,0.01660287]
[1741393966400,0.1181,86647.0,86646.0,0.01660287]
[1741393966599,0.1211,86647.0,86646.0,0.01660287]
[1741393968100,0.1211,86647.0,86643.0,0.18902896]
[1741393968410,0.1211,86647.0,86644.0,0.01420764]
[1741393968604,0.1211,86647.0,86645.0,0.01420764]
[1741393968801,0.1211,86647.0,86643.0,0.18902896]
[1741393969001,0.1211,86647.0,86644.0,0.01420855]
[1741393969201,0.1211,86647.0,86643.0,0.18902896]
[1741393969400,0.1211,86647.0,86644.0,0.01397904]
[1741393969401,0.1191,86647.0,86644.0,0.01397904]
[1741393969609,0.1191,86647.0,86643.0,0.30447736]
[1741393969807,0.1191,86647.0,86644.0,0.01397953]
[1741393969998,0.1191,86647.0,86643.0,0.30447736]
[1741393970198,0.1201,86647.0,86644.0,0.01397952]
[1741393970406,0.1201,86647.0,86645.0,0.01397952]
[1741393970708,0.1201,86647.0,86646.0,0.01397952]
[1741393971102,0.1201,86647.0,86645.0,0.06470561]
[1741393971303,0.1201,86647.0,86646.0,0.1099]
[1741393971703,0.1181,86647.0,86646.0,0.1099]
[1741393971909,0.1201,86647.0,86646.0,0.1099]
[1741393972712,0.1211,86647.0,86646.0,0.1099]
[1741393973404,0.2367,86647.0,86646.0,0.1099]
[1741393974311,0.2367,86647.0,86646.0,0.05242609]
[1741393976714,0.2367,86647.0,86646.0,0.28497049]
[1741393977003,0.1211,86647.0,86646.0,0.28497049]
[1741393977210,0.1211,86647.0,86646.0,0.22749658]
[1741393977605,0.1211,86647.0,86646.0,0.28138244]
[1741393978207,0.1181,86647.0,86646.0,0.28138244]
[1741393978408,0.1191,86647.0,86646.0,0.28138244]
[1741393980310,0.1191,86647.0,86646.0,0.22390853]
[1741393980514,0.1191,86647.0,86646.0,0.33980853]
[1741393981107,0.1191,86647.0,86646.0,0.28523026]
[1741393981605,0.1191,86647.0,86646.0,0.16978586]
[1741393981806,0.4799,86647.0,86646.0,0.16978586]
[1741393982008,0.1191,86647.0,86646.0,0.1159]
[1741393982314,0.4789,86647.0,86646.0,0.1169]
[1741393982506,0.1181,86647.0,86646.0,0.1169]
[1741393983215,0.1201,86647.0,86646.0,0.1296609]
[1741393983414,0.1201,86647.0,86646.0,0.07218699]
[1741393983610,0.1201,86647.0,86642.0,0.00851927]
[1741393983611,0.1154484,86643.0,86642.0,0.00851927]
[1741393983810,0.4762484,86643.0,86642.0,0.00851927]
[1741393984009,0.6970484,86643.0,86642.0,0.00851927]
[1741393984408,0.5816,86643.0,86642.0,0.00851927]
[1741393984615,0.6970484,86643.0,86642.0,0.00851927]
[1741393985818,0.1154591,86635.0,86634.0,0.00895306]
[1741393986011,0.5566191,86635.0,86634.0,0.00017307]
[1741393986415,0.1154617,86633.0,86632.0,0.35453317]
[1741393987019,0.1154617,86633.0,86632.0,0.34853317]
[1741393987316,0.1703307,86634.0,86626.0,0.3460142]
[1741393987509,0.3608,86627.0,86626.0,0.4614853]
[1741393987815,0.4762697,86627.0,86626.0,0.5822292]
[1741393988016,0.4762697,86627.0,86626.0,0.4528142]
[1741393988212,0.4762697,86627.0,86626.0,0.3460142]
[1741393988911,0.3608,86627.0,86626.0,0.3460142]
[1741393989211,0.3608,86627.0,86626.0,0.4614853]
[1741393989419,0.5932697,86627.0,86626.0,0.28854029]
[1741393989713,0.3608,86627.0,86626.0,0.41815149]
[1741393990014,0.3608,86627.0,86626.0,0.31946127]
[1741393990205,0.4762697,86627.0,86626.0,0.30532117]
[1741393990914,0.7011697,86627.0,86626.0,0.30532117]
[1741393991118,0.4778,86627.0,86626.0,0.30532117]
[1741393991420,0.117,86627.0,86626.0,0.03093862]
[1741393991728,0.2324697,86627.0,86626.0,0.03093862]
[1741393991917,0.2324697,86627.0,86626.0,0.25433862]
[1741393992422,0.2324697,86627.0,86626.0,0.19686471]
[1741393993712,0.117,86627.0,86626.0,0.19686471]
[1741393994614,0.2324697,86627.0,86626.0,0.19686471]
[1741393995120,0.117,86627.0,86626.0,0.19686471]
[1741393995616,0.117,86627.0,86626.0,0.1393908]
[1741393996217,0.0577322,86631.0,86626.0,0.1393908]
[1741393996519,0.2323,86630.0,86626.0,0.1393908]
[1741393998512,0.2323,86630.0,86626.0,0.08191689]
[1741393999423,0.1154697,86627.0,86625.0,0.1176]
[1741393999622,0.58,86626.0,86624.0,0.00017307]
[1741393999823,0.1154724,86625.0,86624.0,0.00017307]
[1741394000317,0.3392724,86625.0,86624.0,0.00017307]
[1741394000527,0.2238,86625.0,86624.0,0.00017307]
[1741394001118,0.3392724,86625.0,86624.0,0.00017307]
[1741394001521,0.3392724,86625.0,86622.0,0.00880583]
[1741394001722,0.1154737,86624.0,86623.0,0.1119]
[1741394002022,0.1154746,86624.0,86616.0,0.3608]
[1741394002218,0.3392753,86623.0,86617.0,0.1119]
[1741394003617,0.115477,86622.0,86617.0,0.1119]
[1741394004022,0.2203,86621.0,86617.0,0.1119]
[1741394004227,0.2203,86621.0,86620.0,0.1154791]
[1741394004527,0.2203,86621.0,86620.0,0.07218156]
[1741394004822,0.2203,86621.0,86620.0,0.08879671]
[1741394005028,0.3608,86629.0,86620.0,0.03079152]
[1741394005225,0.1114,86628.0,86627.0,0.115469]
[1741394005534,0.1114,86628.0,86627.0,0.14626052]
[1741394005821,0.1114,86628.0,86627.0,0.03079152]
[1741394006526,0.1114,86628.0,86627.0,0.01661515]
[1741394006736,0.1114,86628.0,86627.0,0.03104065]
[1741394006929,0.1114,86628.0,86627.0,0.14651035]
[1741394007323,0.1114,86628.0,86627.0,0.03104065]
[1741394007627,0.1114,86628.0,86622.0,0.0577382]
[1741394007829,0.1149,86627.0,86625.0,0.2309425]
[1741394008231,0.1096,86626.0,86625.0,0.2309425]
[1741394010636,0.1096,86626.0,86625.0,0.19659529]
[1741394010833,0.00017307,86634.0,86633.0,0.1154617]
[1741394011136,0.3608,86636.0,86627.0,0.3608]
[1741394011336,0.1154499,86642.0,86633.0,0.1154616]
[1741394011526,0.1154499,86642.0,86633.0,0.2309223]
[1741394011729,0.1154499,86642.0,86634.0,0.02313232]
[1741394012037,0.1132,86646.0,86635.0,0.13859132]
[1741394012232,0.1072,86641.0,86636.0,0.02313232]
[1741394012538,0.55765473,86647.0,86642.0,0.1154497]
[1741394012539,0.49993273,86647.0,86642.0,0.1154497]
[1741394012729,0.1072,86645.0,86644.0,0.115446]
[1741394013533,0.1072,86645.0,86641.0,0.115451]
[1741394013834,0.1072,86645.0,86642.0,0.1154496]
[1741394014133,0.1072,86645.0,86636.0,0.08036]
[1741394014327,0.1176,86644.0,86638.0,0.1154543]
[1741394014831,0.1072,86643.0,86639.0,0.02754925]
[1741394015232,0.1176,86642.0,86639.0,0.02754925]
[1741394015437,0.1176,86642.0,86640.0,0.02754925]
[1741394015638,0.1176,86641.0,86640.0,0.02754925]
[1741394016136,0.1176,86642.0,86641.0,0.1154511]
[1741394016728,0.1176,86642.0,86641.0,0.05797719]
[1741394016935,0.1176,86646.0,86645.0,0.1154457]
[1741394017137,0.2312,86646.0,86645.0,0.1154457]
[1741394019732,0.2312,86646.0,86645.0,0.1299623]
[1741394019933,0.2312,86646.0,86645.0,0.1469474]
[1741394020329,0.2312,86646.0,86645.0,0.08897561]
[1741394020732,0.2312,86646.0,86645.0,0.20442131]
[1741394021335,0.2312,86646.0,86645.0,0.42852131]
[1741394021840,0.00017317,86647.0,86646.0,0.1154444]
[1741394022045,0.00017317,86647.0,86646.0,0.13019485]
[1741394022246,0.00017317,86647.0,86646.0,0.35119485]
[1741394022847,0.00017317,86647.0,86646.0,0.29372094]
[1741394023047,0.00017317,86647.0,86646.0,0.31070604]
[1741394023657,0.00017317,86647.0,86646.0,0.33413325]
[1741394025960,0.00017317,86647.0,86646.0,0.03173555]
[1741394026550,0.22137317,86647.0,86646.0,0.03173555]
[1741394028156,0.22137317,86647.0,86646.0,0.14673555]
[1741394028954,0.22137317,86647.0,86646.0,0.08918954]
[1741394029256,0.22137317,86647.0,86645.0,0.05724006]
[1741394029461,0.22137317,86647.0,86646.0,0.2315444]
[1741394029755,0.22137317,86647.0,86646.0,0.1161]
[1741394030857,0.22137317,86647.0,86646.0,0.1396371]
[1741394031859,0.22137317,86647.0,86646.0,0.05855399]
[1741394032061,0.22137317,86647.0,86646.0,0.02346486]
[1741394032262,0.22137317,86647.0,86646.0,0.13890926]
[1741394032466,0.22137317,86647.0,86646.0,0.24620926]
[1741394033057,0.22137317,86647.0,86646.0,0.13076486]
[1741394033459,0.22137317,86647.0,86646.0,0.24620926]
[1741394035167,0.22137317,86647.0,86646.0,0.66086325]
[1741394036662,0.22137317,86647.0,86646.0,0.68826517]
[1741394037165,0.4191907,86664.0,86646.0,0.68826517]
[1741394037166,0.3608,86681.0,86667.0,0.1154164]
[1741394037463,0.2177,86687.0,86667.0,0.1154164]
[1741394037464,0.0636429,86669.0,86668.0,0.2308295]
[1741394037666,0.0636429,86669.0,86668.0,0.26048999]
[1741394037854,0.0636429,86669.0,86668.0,0.2308295]
[1741394038055,0.03766966,86669.0,86668.0,0.31198885]
[1741394038256,0.03766966,86669.0,86668.0,0.40058693]
[1741394038462,0.03766966,86669.0,86668.0,0.51208693]
[1741394039266,0.03766966,86669.0,86668.0,0.4583301]
[1741394040366,0.03766966,86669.0,86668.0,0.342915]
[1741394040670,0.03766966,86669.0,86668.0,0.00886121]
[1741394040868,0.03766966,86669.0,86668.0,0.01452899]
[1741394041058,0.03766966,86669.0,86666.0,0.476]
[1741394041364,0.03766966,86669.0,86660.0,0.00017307]
[1741394041365,0.0577083,86667.0,86660.0,0.00017307]
[1741394041563,0.3608,86665.0,86660.0,0.00017307]
[1741394041769,0.2255,86664.0,86660.0,0.00017307]
[1741394042069,0.2255,86664.0,86661.0,0.41428719]
[1741394042662,0.1154231,86662.0,86661.0,0.41428719]
[1741394042970,0.2832108,86664.0,86661.0,0.41428719]
[1741394043168,0.1154218,86663.0,86661.0,0.41428719]
[1741394043665,0.7964231,86662.0,86661.0,0.41428719]
[1741394044064,0.7964231,86662.0,86661.0,0.35674118]
[1741394044261,0.681,86662.0,86661.0,0.35674118]
[1741394044455,0.3202,86662.0,86661.0,0.35674118]
[1741394044667,0.2128,86662.0,86661.0,0.47216558]
[1741394045170,0.2128,86662.0,86661.0,0.69276558]
[1741394045362,0.2128,86662.0,86661.0,0.3526168]
[1741394046864,0.3608,86676.0,86674.0,0.1154064]
[1741394047066,0.00017307,86677.0,86674.0,0.05786039]
[1741394047256,0.00017307,86677.0,86672.0,0.0577049]
[1741394047567,0.00017307,86677.0,86675.0,0.01656137]
[1741394048566,0.22477307,86677.0,86670.0,0.2230115]
[1741394048871,0.22477307,86677.0,86670.0,0.1076]
[1741394049876,0.22477307,86677.0,86670.0,0.2230124]
[1741394050073,0.28247467,86677.0,86666.0,0.19578021]
[1741394050266,0.22477307,86677.0,86666.0,0.08036291]
[1741394050574,0.22477307,86677.0,86668.0,0.1154143]
[1741394051476,0.34017677,86677.0,86668.0,0.1154143]
[1741394051673,0.1154047,86676.0,86668.0,0.1154143]
[1741394052068,0.221,86675.0,86668.0,0.1154143]
[1741394052568,0.221,86675.0,86667.0,0.1154162]
[1741394052968,0.221,86675.0,86668.0,0.01435036]
[1741394053173,0.221,86675.0,86667.0,0.07222055]
[1741394053376,0.221,86675.0,86668.0,0.1128]
[1741394053575,0.221,86675.0,86671.0,0.1154104]
[1741394053776,0.221,86675.0,86672.0,0.2282095]
[1741394054077,0.221,86675.0,86672.0,0.1128]
[1741394054775,0.221,86675.0,86667.0,0.1068]
[1741394054977,0.221,86675.0,86673.0,0.01657452]
[1741394055867,0.221,86675.0,86674.0,0.01657452]
[1741394056379,0.221,86675.0,86669.0,0.07182851]
[1741394058982,0.221,86675.0,86667.0,0.2222159]
[1741394059183,0.221,86675.0,86667.0,0.16466989]
[1741394059383,0.221,86675.0,86667.0,0.27836989]
[1741394059976,0.221,86675.0,86668.0,0.115415]
[1741394061184,0.1154078,86674.0,86667.0,0.1137]
[1741394061479,0.221,86675.0,86667.0,0.1137]
[1741394061686,0.2197,86673.0,86667.0,0.2291164]
[1741394061874,0.2197,86673.0,86668.0,0.02319754]
[1741394062075,0.2197,86673.0,86667.0,0.3445319]
[1741394062276,0.2197,86673.0,86668.0,0.05786799]
[1741394062488,0.2197,86673.0,86668.0,0.16256799]
[1741394062783,0.2197,86673.0,86668.0,0.26976799]
[1741394062991,0.2197,86673.0,86669.0,0.02322977]
[1741394063181,0.2197,86673.0,86668.0,0.26976799]
[1741394063380,0.2197,86673.0,86669.0,0.02323465]
[1741394063684,0.2197,86673.0,86668.0,0.26976799]
[1741394063885,0.2197,86673.0,86669.0,0.02323434]
[1741394064184,0.2197,86673.0,86670.0,0.02323434]
[1741394064380,0.2197,86673.0,86671.0,0.02323434]
[1741394064581,0.2197,86673.0,86668.0,0.26976799]
[1741394064783,0.2197,86673.0,86670.0,0.20713885]
[1741394065083,0.2197,86673.0,86671.0,0.0233082]
[1741394065290,0.2197,86673.0,86670.0,0.1874912]
[1741394065874,0.3608,86672.0,86670.0,0.1874912]
[1741394066079,0.2197,86673.0,86670.0,0.1874912]
[1741394066379,0.2256,86671.0,86670.0,0.1874912]
[1741394067186,0.3410111,86671.0,86670.0,0.1874912]
[1741394067387,0.2256,86671.0,86670.0,0.1874912]
[1741394068292,0.2256,86671.0,86670.0,0.12994519]
[1741394068482,0.2256,86671.0,86670.0,0.35384519]
[1741394068684,0.2256,86671.0,86670.0,0.2239]
[1741394071599,0.2256,86671.0,86670.0,0.16635399]
[1741394072892,0.2256,86671.0,86670.0,0.44251068]
[1741394073888,0.2256,86671.0,86670.0,0.4592312]
[1741394074091,0.2256,86671.0,86670.0,0.5746436]
[1741394074291,0.2256,86671.0,86670.0,0.62852135]
[1741394074599,0.2256,86671.0,86670.0,0.57097534]
[1741394075301,0.2256,86671.0,86670.0,0.47887604]
[1741394076798,0.2256,86671.0,86670.0,0.47877623]
[1741394077302,0.2256,86671.0,86670.0,0.65058877]
[1741394077503,0.2256,86671.0,86670.0,0.59304276]
[1741394078895,0.2256,86671.0,86670.0,0.55529678]
[1741394079096,0.2256,86671.0,86670.0,0.59296029]
[1741394079500,0.2256,86671.0,86670.0,0.70837269]
[1741394080103,0.2256,86671.0,86670.0,0.59296029]
[1741394080406,0.2256,86671.0,86670.0,0.54169832]
[1741394080609,0.2256,86671.0,86670.0,0.53541428]
[1741394082407,0.2256,86671.0,86670.0,0.65082668]
[1741394082802,0.2256,86671.0,86670.0,0.6403902]
[1741394083603,0.2256,86671.0,86670.0,0.58284419]
[1741394085205,0.2256,86671.0,86670.0,0.58258564]
[1741394085811,0.18266818,86671.0,86670.0,0.58258564]
[1741394086609,0.18266818,86671.0,86670.0,0.52503963]
[1741394088809,0.11362964,86671.0,86670.0,0.52503963]
[1741394089416,0.11362964,86671.0,86670.0,0.53884838]
[1741394089717,0.11362964,86671.0,86670.0,0.48130237]
[1741394091015,0.07833652,86671.0,86670.0,0.48130237]
[1741394091510,0.02353652,86671.0,86670.0,0.48130237]
[1741394091712,0.3608,86682.0,86681.0,0.1153978]
[1741394091918,0.3608,86682.0,86681.0,0.16661151]
[1741394092717,0.3608,86682.0,86681.0,0.1090655]
[1741394093211,0.3608,86682.0,86681.0,0.06834084]
[1741394093811,0.4761965,86682.0,86681.0,0.06834084]
[1741394094411,0.4761965,86682.0,86681.0,0.03160466]
[1741394094921,0.1154111,86671.0,86670.0,0.31467626]
[1741394095119,0.4762111,86671.0,86670.0,0.31467626]
[1741394095616,0.4762111,86671.0,86670.0,0.25713025]
[1741394096317,0.1154124,86670.0,86669.0,0.16480796]
[1741394096520,0.1154244,86661.0,86654.0,0.54110992]
[1741394096712,0.4762244,86661.0,86654.0,0.64440992]
[1741394097024,0.4762244,86661.0,86654.0,0.64508992]
[1741394097221,0.4762244,86661.0,86654.0,0.54178992]
[1741394097421,0.4762244,86661.0,86654.0,0.54110992]
[1741394097612,0.5564244,86661.0,86654.0,0.54110992]
[1741394097915,0.7064244,86661.0,86657.0,0.34603551]
[1741394098821,0.1154284,86658.0,86657.0,0.29744154]
[1741394099012,0.4762284,86658.0,86657.0,0.29744154]
[1741394099207,0.6262284,86658.0,86657.0,0.30597693]
[1741394099613,0.8436284,86658.0,86657.0,0.30597693]
[1741394101824,0.8436284,86658.0,86657.0,0.24843092]
[1741394102022,0.8436284,86658.0,86650.0,0.00173095]
[1741394102023,0.1154377,86651.0,86650.0,0.00173095]
[1741394102220,0.0577285,86637.0,86630.0,0.13790892]
[1741394102425,0.1154631,86632.0,86631.0,0.1036]
[1741394102610,0.4762631,86632.0,86631.0,0.1036]
[1741394103425,0.5799631,86632.0,86631.0,0.1036]
[1741394103619,0.3608,86632.0,86631.0,0.1036]
[1741394103815,0.3608,86632.0,86631.0,0.2190644]
[1741394104015,0.05789987,86640.0,86631.0,0.1036]
[1741394104222,0.1154573,86637.0,86632.0,0.1154625]
[1741394104413,0.00017307,86640.0,86633.0,0.2101]
[1741394104615,0.00017307,86640.0,86635.0,0.1154577]
[1741394104823,0.1154573,86637.0,86633.0,0.15255399]
[1741394105018,0.1154578,86636.0,86633.0,0.15255399]
[1741394105630,0.0577275,86638.0,86633.0,0.15255399]
[1741394105829,0.1154591,86635.0,86633.0,0.15255399]
[1741394106328,0.01231857,86647.0,86633.0,0.51335399]
[1741394106528,0.00060001,86644.0,86643.0,0.1154478]
[1741394106819,0.1154405,86649.0,86643.0,0.0802]
[1741394107024,0.12349004,86651.0,86643.0,0.0802]
[1741394107228,0.06577114,86651.0,86643.0,0.0802]
[1741394107428,0.1154396,86650.0,86643.0,0.0802]
[1741394107622,0.1154407,86649.0,86643.0,0.0802]
[1741394107822,0.12349004,86651.0,86643.0,0.02265399]
[1741394108123,0.1154411,86649.0,86644.0,0.111]
[1741394108324,0.12349004,86651.0,86644.0,0.111]
[1741394108631,0.1154409,86649.0,86644.0,0.111]
[1741394108823,0.12349004,86651.0,86644.0,0.111]
[1741394109019,0.06577114,86651.0,86644.0,0.111]
[1741394109530,0.0577209,86648.0,86644.0,0.111]
[1741394109730,0.17196844,86656.0,86644.0,0.111]
[1741394109731,0.00017307,86656.0,86644.0,0.111]
[1741394110218,0.00017307,86656.0,86646.0,0.13790892]
[1741394110418,0.00017307,86656.0,86647.0,0.1043]
[1741394110819,0.00017307,86656.0,86648.0,0.04515399]
[1741394111425,0.00017307,86656.0,86649.0,0.1049]
[1741394111816,0.00017307,86656.0,86652.0,0.1154361]
[1741394112018,0.00017307,86656.0,86653.0,0.2203347]
[1741394112323,0.56681322,86693.0,86655.0,0.3608]
[1741394112627,0.1153987,86681.0,86677.0,0.13790892]
[1741394112818,0.1154005,86679.0,86678.0,0.1056]
[1741394113222,0.1154005,86679.0,86678.0,0.17094027]
[1741394113421,0.2182005,86679.0,86678.0,0.17094027]
[1741394113617,0.1028,86679.0,86678.0,0.17094027]
[1741394113823,0.1028,86679.0,86678.0,0.11339426]
[1741394114018,0.2182005,86679.0,86678.0,0.11339426]
[1741394114621,0.1028,86679.0,86678.0,0.11339426]
[1741394116331,0.1028,86679.0,86678.0,0.11343426]
[1741394116933,0.1028,86679.0,86678.0,0.05588825]
[1741394117429,0.3276005,86679.0,86678.0,0.00706714]
[1741394118022,0.1154111,86671.0,86670.0,0.00017307]
[1741394118223,0.4762111,86671.0,86670.0,0.00017307]
[1741394118931,0.3278111,86671.0,86670.0,0.00017307]
[1741394119527,0.2124,86671.0,86670.0,0.00017307]
[1741394119725,0.3278111,86671.0,86670.0,0.00017307]
[1741394120034,0.115421,86664.0,86661.0,0.04882706]
[1741394120233,0.1086,86663.0,86661.0,0.04882706]
[1741394120629,0.1086,86663.0,86662.0,0.01349506]
[1741394121435,0.1154192,86665.0,86662.0,0.06239264]
[1741394121632,0.1154204,86664.0,86663.0,0.01349708]
[1741394122429,0.1663095,86666.0,86663.0,0.01349708]
[1741394122739,0.1663095,86666.0,86662.0,0.04889556]
[1741394122740,0.1154199,86665.0,86662.0,0.04889556]
[1741394122935,0.0577083,86667.0,86663.0,0.04385399]
[1741394123234,0.1154175,86667.0,86664.0,0.1044]
[1741394123440,0.1052,86666.0,86664.0,0.1044]
[1741394124136,0.4185044,86673.0,86664.0,0.1044]
[1741394124440,0.3608,86673.0,86664.0,0.1044]
[1741394124639,0.3608,86673.0,86666.0,0.1154171]
[1741394124830,0.4762086,86673.0,86666.0,0.1154171]
[1741394125026,0.3608,86673.0,86664.0,0.1044]
[1741394125240,0.1154191,86665.0,86664.0,0.1044]
[1741394125634,0.3201191,86665.0,86664.0,0.1044]
[1741394125825,0.2047,86665.0,86664.0,0.1044]
[1741394126031,0.2047,86665.0,86664.0,0.04685399]
[1741394126235,0.3201191,86665.0,86664.0,0.04685399]
[1741394126933,0.2047,86665.0,86664.0,0.04685399]
[1741394127231,0.3201191,86665.0,86664.0,0.04685399]
[1741394127436,0.2047,86665.0,86664.0,0.04685399]
[1741394128140,0.0576965,86685.0,86672.0,0.1154098]
[1741394128336,0.1153984,86681.0,86672.0,0.1154098]
[1741394128637,0.2108,86684.0,86670.0,0.0577061]
[1741394128832,0.115405,86676.0,86671.0,0.22063855]
[1741394129141,0.115405,86676.0,86671.0,0.16309254]
[1741394129447,0.1063,86684.0,86671.0,0.16309254]
[1741394129448,0.2685029,86675.0,86672.0,0.1051]
[1741394129741,0.1063,86675.0,86672.0,0.1051]
[1741394129928,0.1063,86675.0,86672.0,0.2064]
[1741394130536,0.2217064,86675.0,86672.0,0.2064]
[1741394130736,0.2217064,86675.0,86672.0,0.22309997]
[1741394131133,0.1063,86675.0,86672.0,0.22309997]
[1741394132033,0.1063,86675.0,86672.0,0.11799997]
[1741394132245,0.4762084,86673.0,86672.0,0.01669997]
[1741394132928,0.1154258,86660.0,86654.0,0.00017307]
[1741394133138,0.1154258,86660.0,86659.0,0.00872308]
[1741394133139,0.4762258,86660.0,86659.0,0.00872308]
[1741394133439,0.1154324,86655.0,86654.0,0.00017307]
[1741394133643,0.1154324,86655.0,86643.0,1.00329455]
[1741394133644,0.40286329,86655.0,86647.0,0.27613455]
[1741394133846,0.4762417,86648.0,86647.0,0.27613455]
[1741394134340,0.5563617,86648.0,86647.0,0.27613455]
[1741394134853,0.6564617,86648.0,86647.0,0.27613455]
[1741394135032,0.6564617,86648.0,86647.0,0.21858854]
[1741394138140,0.6564617,86648.0,86647.0,0.16104253]
[1741394139341,0.6564617,86648.0,86643.0,0.00853949]
[1741394139342,0.1154471,86644.0,86643.0,0.00853949]
[1741394139543,0.1154497,86642.0,86641.0,0.1061]
[1741394139739,0.1058,86643.0,86641.0,0.1061]
[1741394139941,0.44152001,86648.0,86641.0,0.1061]
[1741394139942,0.1154497,86642.0,86641.0,0.1061]
[1741394141248,0.1154497,86642.0,86641.0,0.04855399]
[1741394141944,0.1154484,86644.0,86641.0,0.04855399]
[1741394141945,0.1154466,86645.0,86641.0,0.06206907]
[1741394142143,0.05789277,86650.0,86642.0,0.11361527]
[1741394142144,0.1012,86649.0,86642.0,0.11361527]
[1741394142443,0.1012,86649.0,86643.0,0.01351527]
[1741394142651,0.00017307,86650.0,86645.0,0.3608]
[1741394142843,0.0577202,86649.0,86646.0,0.01351527]
[1741394143044,0.00017307,86650.0,86647.0,0.01351527]
[1741394143248,0.00017307,86650.0,86648.0,0.01354993]
[1741394143452,0.00017307,86650.0,86649.0,0.01354993]
[1741394144245,0.00017307,86650.0,86648.0,0.06370392]
[1741394144445,0.00017307,86650.0,86649.0,0.2169404]
[1741394145044,0.00017307,86650.0,86649.0,0.23154259]
[1741394145351,0.00017307,86650.0,86649.0,0.13290658]
[1741394146248,0.11561217,86650.0,86649.0,0.13290658]
[1741394146451,0.11561217,86650.0,86649.0,0.11830439]
[1741394147045,0.22121217,86650.0,86649.0,0.11830439]
[1741394147242,0.22121217,86650.0,86649.0,0.06075838]
[1741394147743,0.22121217,86650.0,86649.0,0.01680439]
[1741394148347,0.32611217,86650.0,86649.0,0.01680439]
[1741394150257,0.1154452,86646.0,86640.0,0.17921008]
[1741394150462,0.1154474,86644.0,86641.0,0.1012]
[1741394150660,0.2139,86645.0,86641.0,0.1012]
[1741394150968,0.1154497,86642.0,86641.0,0.1012]
[1741394151459,0.3293497,86642.0,86641.0,0.1012]
[1741394153051,0.2139,86642.0,86641.0,0.1012]
[1741394153251,0.2139,86642.0,86641.0,0.04365399]
[1741394153455,0.2139,86642.0,86639.0,0.00881566]
[1741394153456,0.1154524,86640.0,86639.0,0.00881566]
[1741394154461,0.2716255,86642.0,86639.0,0.00881566]
[1741394154646,0.2139,86642.0,86640.0,0.1099]
[1741394155663,0.1154511,86641.0,86640.0,0.1099]
[1741394156159,0.1154524,86640.0,86639.0,0.00881566]
[1741394156351,0.1154524,86640.0,86637.0,0.1045]
[1741394156352,0.1154551,86638.0,86637.0,0.05576965]
[1741394156551,0.0577302,86634.0,86628.0,0.49870892]
[1741394156774,0.1154631,86632.0,86628.0,0.49870892]
[1741394157146,0.1154631,86632.0,86628.0,0.13790892]
[1741394157350,0.3313631,86632.0,86628.0,0.13790892]
[1741394159364,0.3313631,86632.0,86620.0,0.1082]
[1741394159365,0.2159,86632.0,86620.0,0.06144454]
[1741394159560,0.2159,86632.0,86618.0,0.109]
[1741394159561,0.1154804,86619.0,86618.0,0.109]
[1741394159759,0.1154804,86619.0,86618.0,0.15964914]
[1741394160154,0.2097,86620.0,86618.0,0.15964914]
[1741394160361,0.3251804,86619.0,86618.0,0.27513024]
[1741394160663,0.2097,86619.0,86618.0,0.15964914]
[1741394160867,0.3251804,86619.0,86618.0,0.15964914]
[1741394162355,0.3251804,86619.0,86618.0,0.11757108]
[1741394162558,0.3251804,86619.0,86618.0,0.07665038]
[1741394163063,0.3251804,86619.0,86618.0,0.06002507]
[1741394163360,0.3251804,86619.0,86618.0,0.00857108]
[1741394163560,0.1154911,86611.0,86610.0,0.86510892]
[1741394163759,0.1154911,86611.0,86610.0,0.74150878]
[1741394163962,0.3135911,86611.0,86610.0,0.76777307]
[1741394164269,0.0999,86611.0,86610.0,0.90610357]
[1741394164563,0.0999,86611.0,86610.0,0.90609949]
[1741394164763,0.1154831,86617.0,86612.0,0.1154889]
[1741394164959,0.1154831,86617.0,86610.0,0.84835279]
[1741394164960,0.1154871,86614.0,86613.0,0.11219748]
[1741394165262,0.1154871,86614.0,86613.0,0.0981]
[1741394165463,0.1154871,86614.0,86613.0,0.04055399]
[1741394165664,0.1978,86614.0,86613.0,0.04055399]
[1741394166956,0.1978,86614.0,86613.0,0.15604239]
[1741394167759,0.1978,86614.0,86610.0,0.77742961]
[1741394167957,0.1978,86614.0,86610.0,0.77650961]
[1741394168163,0.1154904,86612.0,86610.0,0.77650961]
[1741394168363,0.2081,86611.0,86610.0,0.89200201]
[1741394168552,0.2081,86611.0,86610.0,0.84887895]
[1741394168958,0.2081,86611.0,86610.0,0.80758655]
[1741394169154,0.2081,86611.0,86610.0,0.73338655]
[1741394169367,0.3235911,86611.0,86610.0,0.73554239]
[1741394170162,0.3235911,86611.0,86610.0,0.7189636]
[1741394171559,0.3235911,86611.0,86610.0,0.66141759]
[1741394172059,0.2081,86611.0,86610.0,0.66141759]
[1741394172356,0.3235911,86611.0,86610.0,0.66141759]
[1741394172667,0.2081,86611.0,86610.0,0.66141759]
[1741394173769,0.3235911,86611.0,86610.0,0.66141759]
[1741394173964,0.3235911,86611.0,86610.0,0.65268105]
[1741394174564,0.3235911,86611.0,86610.0,0.59513504]
[1741394175467,0.36140001,86619.0,86615.0,0.0577425]
[1741394175763,0.2122,86618.0,86617.0,0.1154831]
[1741394175964,0.2122,86618.0,86617.0,0.1896831]
[1741394176269,0.2122,86618.0,86617.0,0.0908151]
[1741394177159,0.2122,86618.0,86617.0,0.10532808]
[1741394177563,0.2122,86618.0,86617.0,0.03326909]
[1741394177871,0.2122,86618.0,86617.0,0.04778676]
[1741394178066,0.3276817,86618.0,86617.0,0.0166151]
[1741394178566,0.2122,86618.0,86617.0,0.0166151]
[1741394178764,0.2122,86618.0,86617.0,0.031127]
[1741394178964,0.2122,86618.0,86617.0,0.0166151]
[1741394178965,0.3276817,86618.0,86617.0,0.0166151]
[1741394179960,0.2122,86618.0,86617.0,0.0166151]
[1741394180561,0.0577241,86644.0,86633.0,0.05791559]